[Event "XV American Continental 2022"]
[Site "San Salvador"]
[Date "2022.05.08"]
[Round "9.7"]
[White "Cabezas Solano, David Alejandro"]
[Black "Krysa, Leandro"]
[Result "1/2-1/2"]
[ECO "A32"]
[WhiteElo "2084"]
[BlackElo "2525"]
[Annotator "TA"]
[PlyCount "109"]
[EventDate "2022.05.02"]
[EventCountry "ESA"]
[SourceTitle "playchess.com"]
[Source "ChessBase"]
[SourceQuality "1"]
[TimeControl "40/5400+30:1800+30"]

{[%evp 19,109,-35,-33,-42,0,0,0,14,8,0,22,0,17,0,44,0,0,0,0,-10,-3,-11,-10,-5,-17,-8,-14,-39,-42,-74,-74,-74,-74,-76,-85,-83,-83,-79,-73,-74,-9,-12,0,-7,0,0,0,0,0,0,0,0,15,0,0,-8,-8,-8,-8,-8,-8,-8,-8,-8,-8,-8,-8,-8,-8,-8,-8,-8,-8,-8,0,-8,-8,-8,-8,-8,-8,-8,-8,-8,-8,-8,-8,-8,-8,-8,-8,-8]} 1. d4 {[%emt 0:00:04]} Nf6 {[%emt 0:00:15]} 2. Nf3 {[%emt 0:00:10]} c5 {[%emt 0:00:11]} 3. c4 {[%emt 0:00:19]} cxd4 {[%emt 0:00:21]} 4. Nxd4 {[%emt 0:00:02]} e6 {[%emt 0:00:16]} 5. g3 {[%emt 0:01:07]} d5 {[%emt 0:00:06]} 6. Bg2 {[%emt 0:01:58]} e5 {[%emt 0:00:13]} 7. Nb3 {[%emt 0:06:20]} d4 {[%emt 0:01:12]} 8. O-O {[%emt 0:00:29]} Nc6 {[%emt 0:02:23]} 9. Bg5 {[%emt 0:02:14]} Be7 {[%emt 0:01:36]} 10. N1d2 {[%emt 0:08:26]} O-O {[%emt 0:08:40]} 11. e3 {[%emt 0:05:52] [#] E01: Catalan: Early deviations.} h6 $146 {[%emt 0:07:05]} (11... dxe3 $15 12. Bxe3 Bg4) ({Predecessor:} 11... a5 12. exd4 exd4 13. Nf3 d3 14. Nc1 h6 15. Bxf6 Bxf6 16. Nxd3 Bf5 17. Nfe1 Rc8 {½-½ (43) Argiroudis,S (2315)-Grigorov,G (2503) Kalamaria 2010}) 12. Bxf6 $11 {[%emt 0:00:28]} Bxf6 {[%emt 0:00:18]} 13. exd4 {[%emt 0:08:18]} exd4 {[%emt 0:01:00]} 14. Nc5 {[%emt 0:04:53]} a5 {[%emt 0:19:20]} 15. Nd3 {[%emt 0:06:37]} Nb4 {[%emt 0:03:20]} 16. Ne4 {[%emt 0:03:08]} Be7 {[%emt 0:02:28]} 17. a3 {[%emt 0:06:45]} Nxd3 {[%emt 0:01:08]} 18. Qxd3 {[%emt 0:00:13]} Qb6 {[%emt 0:05:20]} 19. b4 {[%emt 0:08:54]} axb4 {[%emt 0:08:53]} 20. axb4 {[%emt 0:00:21]} Rxa1 {[%emt 0:11:15]} 21. Rxa1 {[%emt 0:00:05]} Qxb4 {[%emt 0:04:25]} 22. Rb1 {[%emt 0:08:01]} Qa4 {[%emt 0:05:12]} 23. Qxd4 {[%emt 0:01:37]} Rd8 {[%emt 0:00:48][%cal Bf8d8,Bd8d4,Bd4c4][%mdl 32]} 24. Nc3 {[%emt 0:01:28] aiming for Qxd8+.} Rxd4 {[%emt 0:05:05]} 25. Nxa4 {[%emt 0:00:04] [#]} Bf5 $1 {[%emt 0:01:49]} 26. Re1 {[%emt 0:11:07] [#]} b5 $1 {[%emt 0:02:47]} 27. Bc6 {[%emt 0:08:31][%cal Oc4b5]} bxa4 {[%emt 0:03:03]} 28. Rxe7 $17 {[%emt 0:00:06][%mdl 4096] Endgame KRB-KRB} Bh3 {[%emt 0:03:21]} (28... a3 $5 29. Ra7 Rxc4 $11) 29. f4 {[%emt 0:00:59]} Rxc4 {[%emt 0:01:29]} (29... Rd1+ $17 30. Kf2 a3) 30. Bd5 $11 {[%emt 0:00:25] The position is equal.} Rc1+ {[%emt 0:01:16]} 31. Kf2 {[%emt 0:00:05]} Rc2+ {[%emt 0:00:24]} 32. Ke3 {[%emt 0:00:25] And now Re8+ would win.} Rxh2 {[%emt 0:00:54][%cal Oh3e6]} 33. Rxf7 {[%emt 0:00:39]} Bg2 {[%emt 0:00:30]} 34. Be6 {[%emt 0:00:17]} Bh3 {[%emt 0:00:30]} 35. Rf5+ {[%emt 0:01:08]} Kh8 {[%emt 0:00:34]} 36. Rh5 {[%emt 0:00:13]} a3 {[%emt 0:00:16]} 37. f5 {[%emt 0:02:45] [#]} ({Don't blunder} 37. Rxh3 $2 Rxh3 38. Bxh3 a2 $19) (37. Bxh3 a2 38. Ra5 Rxh3 $15) 37... Re2+ $1 {[%emt 0:00:40]} 38. Kf3 $1 {[%emt 0:01:28]} ({Of course not} 38. Kxe2 Bg4+ 39. Kd3 Bxh5 $17) 38... Rxe6 {[%emt 0:00:29]} 39. fxe6 {[%emt 0:00:17]} Bxe6 {[%emt 0:00:13] KR-KB} 40. Ra5 {[%emt 0:00:10]} a2 {[%emt 0:00:27]} 41. Kf4 {[%emt 0:30:16]} Kh7 {[%emt 0:03:33]} 42. Ra6 {[%emt 0:00:00]} Bc4 {[%emt 0:00:23]} 43. Ra7 {[%emt 0:00:00]} Kg6 {[%emt 0:00:37]} 44. Ra5 {[%emt 0:00:00]} Kf6 {[%emt 0:01:16]} 45. Ke4 {[%emt 0:00:00]} Be6 {[%emt 0:05:48]} 46. Kf4 {[%emt 0:00:00]} Bc4 {[%emt 0:04:01]} 47. Ke4 {[%emt 0:00:00]} Bb3 {[%emt 0:00:26]} 48. Kf4 {[%emt 0:00:00]} Ke6 {[%emt 0:02:05]} 49. Ke4 {[%emt 0:00:00]} Kd6 {[%emt 0:02:50]} 50. Kf5 {[%emt 0:00:00]} Bf7 {[%emt 0:02:36]} 51. g4 {[%emt 0:00:00]} Kc6 {[%emt 0:05:47]} 52. Rxa2 {[%emt 0:00:00]} Bxa2 {[%emt 0:00:10]} 53. Kg6 {[%emt 0:00:00]} Be6 {[%emt 0:00:04]} 54. Kxg7 {[%emt 0:00:00]} Bxg4 {[%emt 0:00:02] ( -> ...h5)} 55. Kxh6 {[%emt 0:00:00] Weighted Error Value: White=0.04 (flawless) /Black=0.09 (flawless)} 1/2-1/2

[Event "XV American Continental 2022"]
[Site "San Salvador"]
[Date "2022.05.08"]
[Round "9.8"]
[White "Thavandiran, Shiyam"]
[Black "Figueredo Losada, Leonel"]
[Result "1/2-1/2"]
[ECO "C44"]
[WhiteElo "2399"]
[BlackElo "2337"]
[Annotator "TA"]
[PlyCount "110"]
[EventDate "2022.05.02"]
[EventCountry "ESA"]
[SourceTitle "playchess.com"]
[Source "ChessBase"]
[SourceQuality "1"]
[TimeControl "40/5400+30:1800+30"]

{[%evp 9,110,0,-1,-2,4,-7,-9,-11,0,0,0,-12,0,0,0,-7,-6,-9,-12,-9,0,-14,-3,-29,-18,-45,-16,-25,-20,-68,-19,-14,-11,-8,-9,-38,-49,-72,-65,-55,-75,-168,-10,-12,-11,-14,-14,-93,10,7,18,13,41,37,37,37,52,52,52,52,208,41,41,41,41,41,45,42,50,41,51,50,56,41,41,41,41,41,41,41,41,41,41,22,41,15,15,14,41,0,14,8,8,8,8,0,16,16,16,8,8,8,8]} 1. e4 {[%emt 0:00:05]} e5 {[%emt 0:00:36]} 2. Nf3 {[%emt 0:01:42]} Nc6 {[%emt 0:00:05]} 3. Be2 {[%emt 0:00:18]} Nf6 {[%emt 0:00:15]} 4. d3 {[%emt 0:00:06]} g6 {[%emt 0:00:14]} 5. O-O {[%emt 0:01:03]} Bg7 {[%emt 0:00:03]} 6. c3 {[%emt 0:04:21] C44: Ponziani Opening and Scotch Gambit.} a5 {[%emt 0:06:04]} 7. b3 {[%emt 0:13:08]} O-O {[%emt 0:00:21]} 8. Nbd2 {[%emt 0:00:31]} d5 {[%emt 0:03:37]} 9. Bb2 {[%emt 0:10:42]} b6 {[%emt 0:20:56]} 10. a3 {[%emt 0:02:51]} Bb7 {[%emt 0:04:17]} 11. Re1 {[%emt 0:08:22]} Re8 {[%emt 0:00:22] [#]} 12. b4 $146 {[%emt 0:06:26]} ({Predecessor:} 12. Bf1) 12... Nb8 {[%emt 0:09:19]} 13. Bf1 {[%emt 0:05:23]} Nbd7 {[%emt 0:00:04]} 14. exd5 {[%emt 0:09:00]} Nxd5 {[%emt 0:03:21]} 15. c4 {[%emt 0:00:37]} Nf4 {[%emt 0:00:04][%cal Oe5e4]} 16. g3 {[%emt 0:06:04]} Ne6 {[%emt 0:10:52]} 17. Qc2 {[%emt 0:09:24]} Nd4 {[%emt 0:06:09]} 18. Bxd4 {[%emt 0:01:51]} exd4 {[%emt 0:00:04]} 19. c5 {[%emt 0:04:05]} (19. Rxe8+ $11 Qxe8 20. Re1) 19... Nf6 {[%emt 0:10:17]} (19... Rxe1 $15 {deserves consideration.} 20. Rxe1 Bd5) 20. Rxe8+ $11 {[%emt 0:04:41]} Qxe8 {[%emt 0:01:16]} 21. cxb6 {[%emt 0:00:52]} cxb6 {[%emt 0:00:12] next ...axb4 is good for Black.} 22. Re1 {[%emt 0:00:23]} Qd8 {[%emt 0:00:51]} 23. Qc4 {[%emt 0:02:01] [#]} axb4 $1 {[%emt 0:00:24]} 24. axb4 {[%emt 0:00:30]} Nd5 {[%emt 0:00:38]} 25. Ne5 {[%emt 0:00:29]} (25. Bg2 $17) 25... Qd6 $2 {[%emt 0:02:24]} (25... Bxe5 $19 26. Rxe5 Nc3) 26. Qxd4 {[%emt 0:02:10]} Qxb4 {[%emt 0:00:04]} (26... b5 {feels hotter.} 27. Bg2 Ra4 28. Qe4 Qxb4 29. Nd7 Bc3) 27. Qxb4 {[%emt 0:00:45]} Nxb4 {[%emt 0:00:05]} 28. Ndc4 {[%emt 0:04:05]} (28. Rb1 $11) 28... Re8 {[%emt 0:04:01] [#]} ({Better is} 28... b5 $17 29. Nd6 {[#]} Nc2 $1) 29. Rb1 $1 {[%emt 0:00:38]} Nd5 {[%emt 0:01:57]} (29... Bxe5 30. Nxe5) 30. d4 {[%emt 0:00:50]} Re6 {[%emt 0:02:47] Against Nd6} 31. Bh3 {[%emt 0:00:29]} Re7 {[%emt 0:02:53]} 32. Nd6 {[%emt 0:01:19]} Nc3 {[%emt 0:00:49]} 33. Rxb6 {[%emt 0:00:09]} Ne2+ {[%emt 0:00:03]} 34. Kf1 {[%emt 0:00:05]} Nxd4 {[%emt 0:00:03] [#]} ({Black should try} 34... Bxe5 $14 35. dxe5 (35. Rxb7 Rxb7 36. Nxb7 Nxd4 $11) 35... Bf3) 35. Nxg6 $1 {[%emt 0:01:47][%mdl 512]} hxg6 $14 {[%emt 0:00:30]} 36. Rxb7 {[%emt 0:00:21]} Rxb7 {[%emt 0:00:15]} 37. Nxb7 {[%emt 0:00:02][%mdl 4096] Endgame KBN-KBN} Kf8 {[%emt 0:00:23]} 38. Bg2 {[%emt 0:00:15]} Ke7 {[%emt 0:00:06]} 39. Bd5 {[%emt 0:00:20]} Nf5 {[%emt 0:00:54]} 40. Na5 {[%emt 0:00:47]} g5 {[%emt 0:02:50]} 41. h3 {[%emt 0:10:50]} Nd4 {[%emt 0:01:15]} 42. Nc4 {[%emt 0:00:16]} f5 {[%emt 0:00:17]} 43. Ke1 {[%emt 0:00:40]} Kf6 {[%emt 0:00:47]} 44. Kd2 {[%emt 0:00:39]} Bf8 {[%emt 0:00:02]} 45. Kd3 {[%emt 0:02:13]} Bc5 {[%emt 0:04:08]} 46. Nd2 {[%emt 0:07:28]} Ba7 {[%emt 0:00:17]} 47. Nb1 {[%emt 0:00:43]} Nb5 {[%emt 0:00:57]} 48. Ke2 {[%emt 0:01:41]} Nd4+ {[%emt 0:06:54]} 49. Kd3 {[%emt 0:00:10]} Nb5 {[%emt 0:00:10] The position is equal.} 50. f3 {[%emt 0:01:02]} Bf2 {[%emt 0:00:22]} 51. g4 {[%emt 0:03:15]} fxg4 {[%emt 0:00:04]} 52. fxg4 {[%emt 0:00:38]} Be1 {[%emt 0:01:30]} 53. Bc6 {[%emt 0:02:28]} Nd6 {[%emt 0:00:21]} 54. Nd2 {[%emt 0:00:11]} Bxd2 {[%emt 0:00:34]} 55. Kxd2 {[%emt 0:00:15]} Ke5 {Weighted Error Value: White=0.16 (very precise) /Black=0.19 (very precise)} 1/2-1/2

[Event "XV American Continental 2022"]
[Site "San Salvador"]
[Date "2022.05.08"]
[Round "9.9"]
[White "Cervantes Landeiro, Thalia"]
[Black "Arias Gaviria, Mario Alexis"]
[Result "1/2-1/2"]
[ECO "E77"]
[WhiteElo "2193"]
[BlackElo "2181"]
[Annotator "TA"]
[PlyCount "88"]
[EventDate "2022.05.02"]
[EventCountry "ESA"]
[SourceTitle "playchess.com"]
[Source "ChessBase"]
[SourceQuality "1"]
[TimeControl "40/5400+30:1800+30"]

{[%evp 21,88,31,30,22,45,36,56,41,60,-23,-25,-18,-27,-26,-26,-39,-50,-70,-75,-54,-13,-34,-11,-15,-16,-19,-6,-5,0,0,0,0,0,0,0,0,0,-12,-11,-11,-11,-14,-14,-14,-14,-15,-8,-9,-10,-14,-12,-20,0,0,0,-20,0,0,0,0,0,0,0,0,0,0,0,0,0]} 1. d4 {[%emt 0:00:03]} Nf6 {[%emt 0:03:56]} 2. c4 {[%emt 0:00:08]} g6 {[%emt 0:00:03]} 3. Nc3 {[%emt 0:00:10]} Bg7 {[%emt 0:00:04]} 4. e4 {[%emt 0:00:09]} d6 {[%emt 0:00:01]} 5. f4 {[%emt 0:00:30][%cal Bf2f4,Bf4f5][%mdl 32]} O-O {[%emt 0:00:10]} 6. Nf3 {[%emt 0:00:07]} c5 {[%emt 0:05:24]} 7. d5 {[%emt 0:00:06]} e6 {[%emt 0:00:22]} 8. dxe6 {[%emt 0:00:08]} Bxe6 {[%emt 0:00:11]} 9. Bd3 {[%emt 0:00:10]} Nc6 {[%emt 0:00:25]} 10. f5 {[%emt 0:00:20]} Bd7 $1 {[%emt 0:01:27] The main line 10...Bd7 scores better than 10...Bc8.} 11. O-O {[%emt 0:00:19]} Re8 {[%emt 0:18:32]} 12. Bf4 {[%emt 0:05:32] E76: King's Indian: Four Pawns Attack: Lines specific to 6 Nf3 move-order.} Nb4 {[%emt 0:04:44]} 13. Bb1 {[%emt 0:05:42]} ({Of course not} 13. Bxd6 {[#]} Bxf5 $1 14. exf5 Qxd6 $17) 13... Bc6 {[%emt 0:03:19]} 14. fxg6 {[%emt 0:11:57] White is slightly better.} (14. a3 {with more complications.} Na6 15. fxg6 hxg6 16. Ng5) 14... hxg6 {[%emt 0:04:40][%cal Rf6e4] [#]} 15. Bxd6 $146 {[%emt 0:16:27]} (15. Ng5 $14) ({Predecessor:} 15. a3 Na6 16. Re1 Qb6 17. Ra2 Rad8 18. Bg5 Nc7 19. Bh4 Ne6 20. Nd5 Bxd5 21. exd5 {1-0 (39) Baron,M (2264)-Hacche,D (2212) Melbourne 2001}) 15... Nxe4 $11 {[%emt 0:02:05]} 16. Nxe4 {[%emt 0:10:27]} Bxe4 {[%emt 0:06:05]} 17. Bxe4 {[%emt 0:07:32]} Rxe4 {[%emt 0:00:02]} 18. a3 {[%emt 0:01:01] [#]} Re6 $1 {[%emt 0:15:47]} 19. Bxc5 {[%emt 0:06:17]} Nd3 {[%emt 0:00:57]} 20. Bf2 {[%emt 0:00:49]} Bxb2 {[%emt 0:25:54]} 21. Ra2 {[%emt 0:03:16]} Bc3 {[%emt 0:02:12]} 22. Qb3 {[%emt 0:03:13][%csl LRb7,LRc3] The position is equal.} Nxf2 {[%emt 0:01:59]} 23. Raxf2 {[%emt 0:01:41]} Bf6 {[%emt 0:03:03]} 24. Qxb7 {[%emt 0:02:17]} Rb8 {[%emt 0:00:17]} 25. Qxa7 {[%emt 0:02:34]} Ra8 {[%emt 0:00:01]} 26. Qb7 {[%emt 0:02:14]} Rxa3 {[%emt 0:00:12]} 27. Rd2 {[%emt 0:04:55]} Rd3 {[%emt 0:00:56]} 28. Rxd3 {[%emt 0:02:15]} Qxd3 {[%emt 0:00:01]} 29. c5 {[%emt 0:03:10]} Qe3+ {[%emt 0:00:02]} 30. Kh1 {[%emt 0:00:16]} Qxc5 {[%emt 0:00:06]} 31. Qb3 {[%emt 0:01:12]} Kg7 {[%emt 0:00:09]} 32. h3 {[%emt 0:00:41]} Re3 {[%emt 0:00:16]} 33. Qd1 {[%emt 0:00:54]} Qc3 {[%emt 0:00:31]} 34. Nh2 {[%emt 0:00:53]} Bd4 {[%emt 0:01:25]} 35. Ng4 {[%emt 0:02:49]} Re6 {[%emt 0:00:02]} 36. Qb1 {[%emt 0:00:36]} Qb2 {[%emt 0:01:36]} 37. Qd3 {[%emt 0:00:47]} Qc3 {[%emt 0:00:02]} 38. Qd1 {[%emt 0:01:40]} f5 {[%emt 0:01:54]} 39. Nh2 {[%emt 0:00:21]} Ra6 {[%emt 0:00:34]} 40. Qe2 {[%emt 0:04:29]} Ra1 {[%emt 0:00:02]} 41. Qe7+ {[%emt 0:30:40]} Kg8 {[%emt 0:02:13]} 42. Qd8+ {[%emt 0:00:00]} Kg7 {[%emt 0:01:10]} 43. Qe7+ {[%emt 0:00:00]} Kg8 {[%emt 0:00:35]} 44. Qd8+ {[%emt 0:00:00]} Kg7 {[%emt 0:00:05] Weighted Error Value: White=0.09 (flawless) /Black=0.06 (flawless)} 1/2-1/2

[Event "XV American Continental 2022"]
[Site "San Salvador"]
[Date "2022.05.08"]
[Round "9.10"]
[White "Ramirez Osio, Julio Adrian"]
[Black "Valdes Romero, Leonardo"]
[Result "1/2-1/2"]
[ECO "E68"]
[WhiteElo "2143"]
[BlackElo "2403"]
[Annotator "TA"]
[PlyCount "55"]
[EventDate "2022.05.02"]
[EventCountry "ESA"]
[SourceTitle "playchess.com"]
[Source "ChessBase"]
[SourceQuality "1"]
[TimeControl "40/5400+30:1800+30"]

{[%evp 20,55,60,41,67,-41,0,43,29,0,0,0,0,0,0,-22,0,-5,0,-76,-92,-84,0,0,0,0,0,0,0,0,0,0,34,-10,-14,-14,-11,-8]} 1. d4 Nf6 {[%emt 0:04:48]} 2. c4 {[%emt 0:00:01]} g6 {[%emt 0:00:30]} 3. g3 {[%emt 0:00:30]} Bg7 {[%emt 0:00:30]} 4. Bg2 {[%emt 0:00:30]} O-O {[%emt 0:00:30]} 5. Nc3 {[%emt 0:00:30]} d6 {[%emt 0:00:30]} 6. Nf3 {[%emt 0:01:41]} Nbd7 {[%emt 0:03:20]} 7. O-O {[%emt 0:01:07][%cal Bh1f1,Bf1d1,Bd1d3][%mdl 32]} e5 {[%emt 0:00:05]} 8. e4 {[%emt 0:01:17]} a6 {[%emt 0:03:48]} 9. Qc2 {[%emt 0:04:02]} exd4 {[%emt 0:06:31]} 10. Nxd4 {[%emt 0:00:04]} Re8 {[%emt 0:00:08]} 11. Rd1 {[%emt 0:00:23]} Ne5 {[%emt 0:02:10] E60: King's Indian: Unusual lines and Fianchetto Variation without Nc3.} 12. b3 {[%emt 0:00:32]} (12. c5 $14) 12... c5 {[%emt 0:01:26]} (12... Bg4 $15) 13. Nde2 $1 $14 {[%emt 0:00:08]} Bg4 {[%emt 0:00:29] [#] White is slightly better.} 14. Bf4 $146 {[%emt 0:04:19]} (14. Be3 $142) ({Predecessor:} 14. Rb1 Qe7 15. Bg5 h6 16. Nd5 Qd8 17. Bxf6 Bxf6 18. Re1 Bxe2 19. Qxe2 Nc6 20. f4 {1-0 (41) Vovk,Y (2600)-Vypkhaniuk,I (2302) Lvov 2017}) 14... Nf3+ $11 {[%emt 0:05:26]} 15. Bxf3 {[%emt 0:03:07]} Bxf3 {[%emt 0:00:50]} 16. Rd3 {[%emt 0:00:33]} Bxe4 {[%emt 0:21:19]} 17. Nxe4 {[%emt 0:00:05]} Nxe4 {[%emt 0:00:03]} 18. Rad1 {[%emt 0:00:07]} g5 {[%emt 0:06:02]} 19. Bxd6 {[%emt 0:05:10]} (19. Bc1 $1 $11 {remains equal.}) 19... Qf6 $17 {[%emt 0:00:45]} 20. f4 {[%emt 0:00:04]} Nxd6 {[%emt 0:23:05]} (20... Qf5 $17 21. Bc7 (21. Rd5 Qg6 $17) 21... Rac8) 21. Rxd6 $11 {[%emt 0:00:05]} Qe7 {[%emt 0:00:02] [#] Threatens to win with ...Qe3+.} 22. R6d2 {[%emt 0:04:19]} g4 {[%emt 0:06:46] aiming for ...Qe3+.} 23. Kg2 {[%emt 0:02:13]} Rac8 {[%emt 0:06:34]} 24. Qf5 {[%emt 0:02:44]} h5 {[%emt 0:00:21]} 25. Ng1 {[%emt 0:24:48]} b5 {[%emt 0:02:10]} 26. Rd7 {[%emt 0:05:35]} Qe4+ {[%emt 0:00:55]} 27. Qxe4 {[%emt 0:00:05]} Rxe4 {[%emt 0:00:02]} 28. Rd8+ {[%emt 0:00:53] Weighted Error Value: White=0.23 (precise) /Black=0.17 (very precise)} 1/2-1/2

[Event "XV American Continental 2022"]
[Site "San Salvador"]
[Date "2022.05.08"]
[Round "9.11"]
[White "Diaz Rosas, Julio Cesar"]
[Black "Giron, Jorge Ernesto"]
[Result "1/2-1/2"]
[ECO "B30"]
[WhiteElo "2351"]
[BlackElo "2257"]
[Annotator "TA"]
[PlyCount "68"]
[EventDate "2022.05.02"]
[EventCountry "ESA"]
[SourceTitle "playchess.com"]
[Source "ChessBase"]
[SourceQuality "1"]
[TimeControl "40/5400+30:1800+30"]

{[%evp 9,68,73,59,73,92,89,101,70,121,88,86,91,175,173,124,78,71,70,79,75,75,73,75,75,82,64,95,99,95,64,67,72,77,14,21,3,6,0,14,13,57,54,122,10,4,18,12,0,0,0,2,0,0,0,0,0,0,0,0,-1,-6]} 1. e4 {[%emt 0:00:07]} c5 {[%emt 0:00:14]} 2. Nf3 {[%emt 0:00:04]} Nc6 {[%emt 0:00:04]} 3. Bc4 {[%emt 0:00:06]} e6 {[%emt 0:01:26]} 4. O-O {[%emt 0:00:10]} g6 {[%emt 0:00:08]} 5. d4 {[%emt 0:00:12]} cxd4 {[%emt 0:00:27]} 6. Nxd4 {[%emt 0:00:05] B30: Sicilian: 2...Nc6 3 Bb5, lines without ...g6.} d6 {[%emt 0:01:36]} 7. Nc3 {[%emt 0:05:11]} a6 {[%emt 0:00:09]} 8. Be3 {[%emt 0:05:24] White is better.} Nge7 {[%emt 0:00:34]} (8... Na5 $14 9. Be2 Nf6) 9. Qd2 {[%emt 0:05:31] 0x0.001c2ee6b3a9dp-1022s more active pieces. The black rooks are badly placed.} Bg7 {[%emt 0:09:46] [#]} 10. Rad1 $146 {[%emt 0:00:55]} ({Predecessor:} 10. f4 O-O 11. a3 b5 12. Ba2 Na5 13. Qd3 Bd7 14. b4 Nac6 15. Rac1 Rc8 16. Bb3 Nxd4 17. Bxd4 Bxd4+ 18. Qxd4 {½-½ (41) Koethe,C-Gosch,D Bad Laasphe 1994}) 10... d5 {[%emt 0:01:20] [#]} (10... Bd7 $16) 11. exd5 $1 $18 {[%emt 0:00:55]} exd5 {[%emt 0:00:04] [#]} 12. Nxc6 {[%emt 0:10:42]} (12. Nxd5 $142 $1 {[%mdl 512]} Nxd5 13. Bg5) 12... bxc6 $16 {[%emt 0:00:04] [#]} 13. Bd4 $1 {[%emt 0:00:49]} O-O {[%emt 0:02:01]} 14. Bxg7 {[%emt 0:00:15]} Kxg7 {[%emt 0:00:06]} 15. Qd4+ {[%emt 0:01:14]} f6 {[%emt 0:00:03]} 16. Qc5 {[%emt 0:01:40]} Bd7 {[%emt 0:02:05]} 17. Bb3 {[%emt 0:02:23]} Rb8 {[%emt 0:10:05]} 18. Na4 {[%emt 0:00:49]} Re8 {[%emt 0:16:42]} 19. c4 {[%emt 0:01:07]} Be6 {[%emt 0:01:00]} 20. Rfe1 {[%emt 0:04:38]} Bf7 {[%emt 0:00:05]} 21. h3 {[%emt 0:05:21]} (21. Nc3 $16) 21... Nf5 $11 {[%emt 0:06:39]} 22. cxd5 {[%emt 0:02:49]} ({Much weaker is} 22. Qxc6 Rxe1+ 23. Rxe1 dxc4 $17) 22... cxd5 {[%emt 0:00:20]} 23. Qa7 {[%emt 0:12:42] Bxd5 is the strong threat.} Rxe1+ {[%emt 0:26:47]} 24. Rxe1 {[%emt 0:00:17][%cal Ob3d5] And now Bxd5! would win.} Qa5 {[%emt 0:00:07]} 25. Rd1 {[%emt 0:13:02]} Rd8 {[%emt 0:00:43]} ({Black should play} 25... Re8 $14) 26. Qc5 {[%emt 0:08:50]} ({White should try} 26. Nc3 $16) 26... Qxc5 {[%emt 0:03:45] The position is equal.} 27. Nxc5 {[%emt 0:00:05]} Rd6 {[%emt 0:00:26][%cal Bd8d6,Bd6c6,Bc6b6][%mdl 32]} 28. Bc2 {[%emt 0:04:07]} Rc6 {[%emt 0:01:35]} 29. b4 {[%emt 0:00:38]} Nd6 {[%emt 0:01:40]} 30. Ba4 {[%emt 0:05:40]} Rb6 {[%emt 0:00:24]} 31. a3 {[%emt 0:00:47]} Nc4 {[%emt 0:05:46]} 32. Ra1 {[%emt 0:01:57]} a5 {[%emt 0:00:08]} 33. bxa5 {[%emt 0:05:17]} Nxa5 {[%emt 0:02:54]} 34. Re1 {[%emt 0:02:07]} Nb7 {[%emt 0:00:03] White really could win this.  Weighted Error Value: White=0.18 (very precise) /Black=0.12 (very precise)} 1/2-1/2